[Event "*** Titled Tuesday Blitz"]
[Site "Chess.com"]
[Date "2019.04.02"]
[Round "6"]
[White "SoltaniciR"]
[Black "pedro_gines"]
[Result "0-1"]
[WhiteElo "2575"]
[BlackElo "2451"]
[TimeControl "180+2"]
[EndTime "15:18:32 PDT"]
[Termination "pedro_gines won by resignation"]

1. e4 {[%clk 0:03:01.9]} 1... c6 {[%clk 0:02:59.5]} 2. Nf3 {[%clk 0:03:02.4]}
2... d5 {[%clk 0:03:01.4]} 3. Nc3 {[%clk 0:03:03.1]} 3... Bg4 {[%clk 0:03:01.5]}
4. h3 {[%clk 0:03:03.8]} 4... Bxf3 {[%clk 0:03:02.4]} 5. Qxf3 {[%clk 0:03:05.7]}
5... e6 {[%clk 0:03:02.5]} 6. d4 {[%clk 0:03:06.4]} 6... dxe4 {[%clk 0:03:02]}
7. Nxe4 {[%clk 0:03:05.5]} 7... Qxd4 {[%clk 0:03:03.2]} 8. Bg5 {[%clk
0:03:06.2]} 8... Qe5 {[%clk 0:02:11.2]} 9. O-O-O {[%clk 0:02:53.5]} 9... Nd7
{[%clk 0:01:55.4]} 10. Bc4 {[%clk 0:02:33.7]} 10... Ngf6 {[%clk 0:01:47.6]} 11.
Nxf6+ {[%clk 0:02:08.8]} 11... Nxf6 {[%clk 0:01:38.2]} 12. Bf4 {[%clk
0:02:01.5]} 12... Qe4 {[%clk 0:01:30.2]} 13. Qxe4 {[%clk 0:01:52.3]} 13... Nxe4
{[%clk 0:01:30.6]} 14. Rhe1 {[%clk 0:01:53.6]} 14... Nf6 {[%clk 0:01:12.3]} 15.
g4 {[%clk 0:01:54]} 15... Be7 {[%clk 0:01:11.3]} 16. g5 {[%clk 0:01:38.8]} 16...
Nd5 {[%clk 0:01:11.4]} 17. Bd2 {[%clk 0:01:39.8]} 17... O-O-O {[%clk 0:01:03.3]}
18. h4 {[%clk 0:01:36.2]} 18... Bc5 {[%clk 0:00:44.4]} 19. Re2 {[%clk 0:01:37]}
19... Nb6 {[%clk 0:00:41.6]} 20. Bd3 {[%clk 0:01:36.8]} 20... Rd5 {[%clk
0:00:28.8]} 21. h5 {[%clk 0:01:31.4]} 21... g6 {[%clk 0:00:24.4]} 22. Rh1 {[%clk
0:01:32]} 22... Be7 {[%clk 0:00:21.9]} 23. hxg6 {[%clk 0:01:22.2]} 23... fxg6
{[%clk 0:00:22.6]} 24. Bxg6 {[%clk 0:01:14.1]} 24... Bxg5 {[%clk 0:00:23.1]} 25.
Rxh7 {[%clk 0:01:14.7]} 25... Rxh7 {[%clk 0:00:22.6]} 26. Bxh7 {[%clk 0:01:15]}
26... Rxd2 {[%clk 0:00:22.9]} 27. Rxd2 {[%clk 0:01:15.7]} 27... Nc4 {[%clk
0:00:24.4]} 28. b3 {[%clk 0:01:13]} 28... Nxd2 {[%clk 0:00:25.1]} 29. Kd1 {[%clk
0:01:13.8]} 29... Nb1 {[%clk 0:00:23.4]} 30. a4 {[%clk 0:01:13.3]} 30... Nc3+
{[%clk 0:00:23.5]} 31. Ke1 {[%clk 0:01:14.6]} 31... Kc7 {[%clk 0:00:23.9]} 32.
Bg8 {[%clk 0:01:15.2]} 32... Kd6 {[%clk 0:00:24.6]} 33. Kf1 {[%clk 0:01:15.7]}
33... b5 {[%clk 0:00:24.5]} 34. axb5 {[%clk 0:01:14.6]} 34... cxb5 {[%clk
0:00:26.4]} 35. Kg2 {[%clk 0:01:16]} 35... a5 {[%clk 0:00:27.8]} 0-1

[Event "*** Titled Tuesday Blitz"]
[Site "Chess.com"]
[Date "2019.04.02"]
[Round "6"]
[White "Oleg_Papayan"]
[Black "pedromartinez91"]
[Result "1-0"]
[WhiteElo "2515"]
[BlackElo "2494"]
[TimeControl "180+2"]
[EndTime "15:18:35 PDT"]
[Termination "Oleg_Papayan won by resignation"]

1. e4 {[%clk 0:03:01.9]} 1... c5 {[%clk 0:02:49.3]} 2. Nf3 {[%clk 0:02:58.7]}
2... Nc6 {[%clk 0:02:49.7]} 3. d4 {[%clk 0:02:55.7]} 3... cxd4 {[%clk 0:02:50]}
4. Nxd4 {[%clk 0:02:57.6]} 4... g6 {[%clk 0:02:50.4]} 5. Nxc6 {[%clk 0:02:47.3]}
5... bxc6 {[%clk 0:02:50.2]} 6. Qd4 {[%clk 0:02:45.5]} 6... Nf6 {[%clk 0:02:51]}
7. e5 {[%clk 0:02:44.4]} 7... Ng8 {[%clk 0:02:52.4]} 8. e6 {[%clk 0:02:39.3]}
8... Nf6 {[%clk 0:02:52.8]} 9. exf7+ {[%clk 0:02:38]} 9... Kxf7 {[%clk
0:02:54.7]} 10. Nc3 {[%clk 0:02:35.2]} 10... Bg7 {[%clk 0:02:53.8]} 11. Bg5
{[%clk 0:02:28.8]} 11... Qb6 {[%clk 0:02:53.9]} 12. Bc4+ {[%clk 0:02:06.3]}
12... d5 {[%clk 0:02:53.2]} 13. Qxb6 {[%clk 0:02:07.3]} 13... axb6 {[%clk
0:02:53.9]} 14. Bxf6 {[%clk 0:02:08.9]} 14... exf6 {[%clk 0:02:49.6]} 15. Bd3
{[%clk 0:02:07.2]} 15... Re8+ {[%clk 0:02:48.2]} 16. Kd1 {[%clk 0:02:04.1]}
16... b5 {[%clk 0:02:47.4]} 17. Re1 {[%clk 0:02:01.2]} 17... Be6 {[%clk
0:02:45.5]} 18. Ne2 {[%clk 0:02:00.1]} 18... f5 {[%clk 0:02:40.7]} 19. c3 {[%clk
0:02:00.4]} 19... b4 {[%clk 0:02:41.6]} 20. Kc2 {[%clk 0:01:55.8]} 20... bxc3
{[%clk 0:02:42.4]} 21. bxc3 {[%clk 0:01:54.9]} 21... Ra3 {[%clk 0:02:42.8]} 22.
Nd4 {[%clk 0:01:46.3]} 22... Rxc3+ {[%clk 0:02:43.3]} 23. Kxc3 {[%clk
0:01:47.2]} 23... c5 {[%clk 0:02:44.9]} 24. Rab1 {[%clk 0:01:37.5]} 24... Bxd4+
{[%clk 0:02:45.7]} 25. Kc2 {[%clk 0:01:38.9]} 25... Re7 {[%clk 0:02:41.5]} 26.
f4 {[%clk 0:01:33.9]} 26... c4 {[%clk 0:02:42.5]} 27. Be2 {[%clk 0:01:33]} 27...
Ra7 {[%clk 0:02:42.8]} 28. a4 {[%clk 0:01:30.8]} 28... Rxa4 {[%clk 0:02:43]} 29.
Rb7+ {[%clk 0:01:32.1]} 29... Kf6 {[%clk 0:02:43.9]} 30. Bf3 {[%clk 0:01:31.1]}
30... Ra2+ {[%clk 0:02:44.3]} 31. Kd1 {[%clk 0:01:25.9]} 31... Ra1+ {[%clk
0:02:38]} 32. Ke2 {[%clk 0:01:24.6]} 32... Ra2+ {[%clk 0:02:34.1]} 33. Kd1
{[%clk 0:01:25.9]} 33... c3 {[%clk 0:02:29.8]} 34. Rc7 {[%clk 0:01:20.7]} 34...
Ra1+ {[%clk 0:02:10.4]} 35. Ke2 {[%clk 0:01:21.4]} 35... Rxe1+ {[%clk
0:02:00.3]} 36. Kxe1 {[%clk 0:01:22.3]} 36... Bb6 {[%clk 0:02:02.2]} 37. Rc6
{[%clk 0:01:21.8]} 37... Ba5 {[%clk 0:02:03.1]} 38. Bxd5 {[%clk 0:01:20.1]}
38... c2+ {[%clk 0:02:04.3]} 39. Ke2 {[%clk 0:01:21.5]} 39... c1=N+ {[%clk
0:02:00.9]} 40. Ke3 {[%clk 0:01:10.4]} 40... Kg7 {[%clk 0:01:22.7]} 41. Bxe6
{[%clk 0:01:09.3]} 41... Bb4 {[%clk 0:01:04.1]} 42. Rxc1 {[%clk 0:01:06.6]} 1-0

[Event "*** Titled Tuesday Blitz"]
[Site "Chess.com"]
[Date "2019.04.02"]
[Round "6"]
[White "jefferyx"]
[Black "Lennis93"]
[Result "1-0"]
[WhiteElo "2893"]
[BlackElo "2367"]
[TimeControl "180+2"]
[EndTime "15:18:41 PDT"]
[Termination "jefferyx won by checkmate"]

1. d4 {[%clk 0:03:01.9]} 1... d5 {[%clk 0:03:00.1]} 2. c4 {[%clk 0:03:03.2]}
2... c6 {[%clk 0:03:00.5]} 3. Nf3 {[%clk 0:03:04.2]} 3... Nf6 {[%clk 0:03:01.5]}
4. cxd5 {[%clk 0:03:05.7]} 4... cxd5 {[%clk 0:03:00.7]} 5. Nc3 {[%clk
0:03:07.4]} 5... Nc6 {[%clk 0:03:01.2]} 6. Bf4 {[%clk 0:03:09.1]} 6... a6 {[%clk
0:03:01.9]} 7. Rc1 {[%clk 0:03:10]} 7... e6 {[%clk 0:03:02.9]} 8. e3 {[%clk
0:03:09]} 8... Bd6 {[%clk 0:03:03.8]} 9. Bxd6 {[%clk 0:03:09.3]} 9... Qxd6
{[%clk 0:03:04.9]} 10. Bd3 {[%clk 0:03:10]} 10... O-O {[%clk 0:03:05.8]} 11. O-O
{[%clk 0:03:10.8]} 11... Bd7 {[%clk 0:03:06.4]} 12. a3 {[%clk 0:03:11.6]} 12...
Rfc8 {[%clk 0:03:06.5]} 13. Na4 {[%clk 0:03:12]} 13... Ne7 {[%clk 0:02:57.8]}
14. Nc5 {[%clk 0:03:09]} 14... Bc6 {[%clk 0:02:49.6]} 15. Ne5 {[%clk 0:03:09.7]}
15... Rab8 {[%clk 0:02:31.9]} 16. Qb3 {[%clk 0:03:05.7]} 16... Ne8 {[%clk
0:02:23.9]} 17. Qb6 {[%clk 0:02:51.2]} 17... Qc7 {[%clk 0:02:21.8]} 18. Qxc7
{[%clk 0:02:46.8]} 18... Rxc7 {[%clk 0:02:21.2]} 19. Bxa6 {[%clk 0:02:27.2]}
19... bxa6 {[%clk 0:01:50.5]} 20. Nxa6 {[%clk 0:02:29.1]} 20... Rbc8 {[%clk
0:01:51.5]} 21. Nxc7 {[%clk 0:02:30.4]} 21... Rxc7 {[%clk 0:01:52.2]} 22. Nxc6
{[%clk 0:02:31.9]} 22... Nxc6 {[%clk 0:01:51.6]} 23. Rc5 {[%clk 0:02:09.2]}
23... Ne7 {[%clk 0:01:09.9]} 24. Rxc7 {[%clk 0:02:06.7]} 24... Nxc7 {[%clk
0:01:10.8]} 25. Rc1 {[%clk 0:02:08.6]} 25... Na6 {[%clk 0:00:58.4]} 26. b4
{[%clk 0:02:09.2]} 26... Kf8 {[%clk 0:00:50.7]} 27. b5 {[%clk 0:02:10.4]} 27...
Nb8 {[%clk 0:00:51.4]} 28. a4 {[%clk 0:01:36.9]} 28... Ke8 {[%clk 0:00:51.9]}
29. Rc7 {[%clk 0:01:27]} 29... Kd8 {[%clk 0:00:52.5]} 30. Rb7 {[%clk 0:01:28.4]}
30... Nd7 {[%clk 0:00:51.7]} 31. a5 {[%clk 0:01:30]} 31... Kc8 {[%clk
0:00:51.6]} 32. a6 {[%clk 0:01:31.2]} 32... Nf5 {[%clk 0:00:35.4]} 33. Rxd7
{[%clk 0:01:31.7]} 33... Kxd7 {[%clk 0:00:34.4]} 34. a7 {[%clk 0:01:32.9]} 34...
Nd6 {[%clk 0:00:35.9]} 35. a8=Q {[%clk 0:01:31.4]} 35... Nxb5 {[%clk 0:00:34.6]}
36. Qg8 {[%clk 0:01:32.3]} 36... Ke7 {[%clk 0:00:31.8]} 37. Qxg7 {[%clk
0:01:33.2]} 37... h5 {[%clk 0:00:30.5]} 38. Qg5+ {[%clk 0:01:33.1]} 38... Kf8
{[%clk 0:00:30.7]} 39. Qxh5 {[%clk 0:01:35]} 39... Nd6 {[%clk 0:00:31.4]} 40. h4
{[%clk 0:01:33.5]} 40... Ne4 {[%clk 0:00:32.2]} 41. Qh8+ {[%clk 0:01:34.2]}
41... Ke7 {[%clk 0:00:32.5]} 42. h5 {[%clk 0:01:36.1]} 42... Nc3 {[%clk
0:00:32.8]} 43. h6 {[%clk 0:01:38]} 43... Ne2+ {[%clk 0:00:33.9]} 44. Kh2 {[%clk
0:01:39.6]} 44... Nc3 {[%clk 0:00:34.1]} 45. h7 {[%clk 0:01:41.2]} 45... Ne4
{[%clk 0:00:35.2]} 46. Qb8 {[%clk 0:01:42.4]} 46... Ng5 {[%clk 0:00:36.1]} 47.
h8=Q {[%clk 0:01:44.2]} 47... Ne4 {[%clk 0:00:33]} 48. Qbd8# {[%clk 0:01:44.1]}
1-0

[Event "*** Titled Tuesday Blitz"]
[Site "Chess.com"]
[Date "2019.04.02"]
[Round "6"]
[White "Quiet_Desperation"]
[Black "Davor_Rogic"]
[Result "1-0"]
[WhiteElo "2422"]
[BlackElo "2381"]
[TimeControl "180+2"]
[EndTime "15:18:41 PDT"]
[Termination "Quiet_Desperation won by resignation"]

1. e4 {[%clk 0:03:01.9]} 1... c5 {[%clk 0:02:44.1]} 2. Nf3 {[%clk 0:03:01.6]}
2... e6 {[%clk 0:02:44.9]} 3. d4 {[%clk 0:03:02.5]} 3... cxd4 {[%clk 0:02:46]}
4. Nxd4 {[%clk 0:03:04.4]} 4... Nf6 {[%clk 0:02:47.1]} 5. Nc3 {[%clk 0:03:05.3]}
5... d6 {[%clk 0:02:48]} 6. Bd3 {[%clk 0:03:04.9]} 6... a6 {[%clk 0:02:46.4]} 7.
O-O {[%clk 0:03:05]} 7... b5 {[%clk 0:02:47.3]} 8. a3 {[%clk 0:03:05.9]} 8...
Bb7 {[%clk 0:02:47.5]} 9. Be3 {[%clk 0:03:07]} 9... Nbd7 {[%clk 0:02:48.5]} 10.
Kh1 {[%clk 0:03:08]} 10... Rc8 {[%clk 0:02:49.2]} 11. Nb3 {[%clk 0:03:03.3]}
11... Be7 {[%clk 0:02:48]} 12. f4 {[%clk 0:02:52.7]} 12... O-O {[%clk
0:02:44.5]} 13. Rf3 {[%clk 0:02:36.1]} 13... Rxc3 {[%clk 0:02:42.1]} 14. bxc3
{[%clk 0:02:34.3]} 14... Nxe4 {[%clk 0:02:43.2]} 15. Bxe4 {[%clk 0:02:34.9]}
15... Bxe4 {[%clk 0:02:43.4]} 16. Rf1 {[%clk 0:02:32]} 16... Qc7 {[%clk
0:02:43.5]} 17. Bd4 {[%clk 0:02:32.3]} 17... e5 {[%clk 0:02:23.5]} 18. fxe5
{[%clk 0:02:26.2]} 18... dxe5 {[%clk 0:02:24.5]} 19. Be3 {[%clk 0:02:20.9]}
19... f5 {[%clk 0:02:18.5]} 20. Nd2 {[%clk 0:02:13.1]} 20... Bb7 {[%clk
0:02:14.4]} 21. Nb3 {[%clk 0:02:06.9]} 21... f4 {[%clk 0:02:09.8]} 22. Bd2
{[%clk 0:02:02.6]} 22... Nf6 {[%clk 0:02:09.2]} 23. Qe2 {[%clk 0:01:55.4]} 23...
Ne4 {[%clk 0:02:07.9]} 24. Rae1 {[%clk 0:01:55.1]} 24... Bxa3 {[%clk 0:02:01.1]}
25. Qg4 {[%clk 0:01:39.3]} 25... Rf6 {[%clk 0:01:42.3]} 26. Qh5 {[%clk
0:01:31.1]} 26... Rg6 {[%clk 0:01:36.7]} 27. Re2 {[%clk 0:01:22.3]} 27... Bd6
{[%clk 0:01:22.7]} 28. Qf5 {[%clk 0:01:20]} 28... Nxd2 {[%clk 0:01:06.6]} 29.
Nxd2 {[%clk 0:01:18.2]} 29... Qf7 {[%clk 0:00:58]} 30. Qd3 {[%clk 0:01:13.4]}
30... Qd5 {[%clk 0:00:53.1]} 31. Qh3 {[%clk 0:01:05.8]} 31... Rh6 {[%clk
0:00:39.9]} 32. Qd7 {[%clk 0:01:04.8]} 32... Qe6 {[%clk 0:00:30.7]} 33. Qxb7
{[%clk 0:01:02]} 33... Bc5 {[%clk 0:00:25.2]} 34. Qb8+ {[%clk 0:00:57.5]} 34...
Kf7 {[%clk 0:00:26.1]} 35. Qc7+ {[%clk 0:00:58.6]} 35... Kg8 {[%clk 0:00:27.1]}
36. Qxc5 {[%clk 0:00:59.6]} 1-0

[Event "*** Titled Tuesday Blitz"]
[Site "Chess.com"]
[Date "2019.04.02"]
[Round "6"]
[White "joppie2"]
[Black "IMRosen"]
[Result "1-0"]
[WhiteElo "2798"]
[BlackElo "2539"]
[TimeControl "180+2"]
[EndTime "15:18:44 PDT"]
[Termination "joppie2 won by resignation"]

1. e4 {[%clk 0:03:01.9]} 1... c5 {[%clk 0:03:00.3]} 2. Nf3 {[%clk 0:03:01.9]}
2... e6 {[%clk 0:03:01.9]} 3. g3 {[%clk 0:03:00.2]} 3... Nc6 {[%clk 0:03:02.2]}
4. d4 {[%clk 0:03:01.7]} 4... cxd4 {[%clk 0:03:02.4]} 5. Nxd4 {[%clk 0:03:03.6]}
5... Nf6 {[%clk 0:03:02.3]} 6. Bg2 {[%clk 0:03:03.9]} 6... h5 {[%clk 0:02:56.9]}
7. O-O {[%clk 0:03:01]} 7... h4 {[%clk 0:02:57.7]} 8. Nxc6 {[%clk 0:03:01.8]}
8... bxc6 {[%clk 0:02:58.7]} 9. e5 {[%clk 0:03:03.3]} 9... Nd5 {[%clk
0:02:54.5]} 10. c4 {[%clk 0:03:04.8]} 10... Nb6 {[%clk 0:02:44.9]} 11. Qg4
{[%clk 0:03:06.3]} 11... Qc7 {[%clk 0:02:31.7]} 12. Re1 {[%clk 0:02:59]} 12...
hxg3 {[%clk 0:02:27.4]} 13. hxg3 {[%clk 0:02:59.5]} 13... Ba6 {[%clk 0:02:22.2]}
14. b3 {[%clk 0:02:59.7]} 14... O-O-O {[%clk 0:02:19.6]} 15. a4 {[%clk 0:02:57]}
15... Bb4 {[%clk 0:01:46.8]} 16. Bd2 {[%clk 0:02:57.4]} 16... f5 {[%clk
0:01:46.3]} 17. exf6 {[%clk 0:02:51.8]} 17... Bxd2 {[%clk 0:01:46.9]} 18. Nxd2
{[%clk 0:02:53.7]} 18... gxf6 {[%clk 0:01:46.1]} 19. a5 {[%clk 0:02:55.3]} 19...
Na8 {[%clk 0:01:33]} 20. b4 {[%clk 0:02:44.9]} 20... Kb8 {[%clk 0:01:24.9]} 21.
b5 {[%clk 0:02:38.1]} 21... cxb5 {[%clk 0:01:23.2]} 22. Reb1 {[%clk 0:02:35.9]}
22... Qc5 {[%clk 0:01:09.9]} 23. Qf3 {[%clk 0:02:30.7]} 23... d5 {[%clk
0:00:51.3]} 24. cxb5 {[%clk 0:02:24.7]} 24... Bb7 {[%clk 0:00:50.9]} 25. a6
{[%clk 0:02:18.6]} 25... Bc8 {[%clk 0:00:51.5]} 26. Qxf6 {[%clk 0:02:20.1]}
26... Nb6 {[%clk 0:00:43.5]} 27. Nb3 {[%clk 0:02:19.3]} 27... Qc7 {[%clk
0:00:35]} 28. Nd4 {[%clk 0:02:20.2]} 28... Ka8 {[%clk 0:00:34.1]} 29. Nxe6
{[%clk 0:02:10.3]} 29... Bxe6 {[%clk 0:00:18.3]} 30. Qxe6 {[%clk 0:02:12.2]}
30... Rhe8 {[%clk 0:00:11.7]} 31. Qg4 {[%clk 0:02:07]} 31... Qf7 {[%clk
0:00:05.2]} 32. Rd1 {[%clk 0:02:06.3]} 32... Re5 {[%clk 0:00:04.8]} 33. Ra2
{[%clk 0:02:07.1]} 33... Rf8 {[%clk 0:00:03.7]} 34. Rad2 {[%clk 0:02:07.7]}
34... Rf5 {[%clk 0:00:04.7]} 35. Qd4 {[%clk 0:01:48.7]} 35... Rxf2 {[%clk
0:00:04.5]} 36. Rxf2 {[%clk 0:01:49.1]} 36... Qe8 {[%clk 0:00:02.8]} 37. Bxd5+
{[%clk 0:01:48.2]} 37... Kb8 {[%clk 0:00:02.5]} 38. Rxf8 {[%clk 0:01:46.6]}
38... Qxf8 {[%clk 0:00:04.4]} 39. Qe5+ {[%clk 0:01:48.1]} 39... Kc8 {[%clk
0:00:03.6]} 40. Rc1+ {[%clk 0:01:49.6]} 40... Nc4 {[%clk 0:00:02.9]} 1-0

[Event "*** Titled Tuesday Blitz"]
[Site "Chess.com"]
[Date "2019.04.02"]
[Round "6"]
[White "DrRiebert"]
[Black "Genghis_K"]
[Result "1-0"]
[WhiteElo "2580"]
[BlackElo "2829"]
[TimeControl "180+2"]
[EndTime "15:18:44 PDT"]
[Termination "DrRiebert won by resignation"]

1. e4 {[%clk 0:03:01.9]} 1... e5 {[%clk 0:03:00.3]} 2. Nf3 {[%clk 0:03:03]} 2...
Nc6 {[%clk 0:03:01]} 3. d4 {[%clk 0:03:04.4]} 3... exd4 {[%clk 0:03:01.2]} 4.
Nxd4 {[%clk 0:03:06.3]} 4... Nf6 {[%clk 0:03:02.7]} 5. Nxc6 {[%clk 0:03:07.2]}
5... bxc6 {[%clk 0:03:03.9]} 6. Bd3 {[%clk 0:03:08.9]} 6... d5 {[%clk
0:03:04.6]} 7. e5 {[%clk 0:03:10.2]} 7... Ng4 {[%clk 0:03:05.5]} 8. O-O {[%clk
0:03:11.5]} 8... Bc5 {[%clk 0:02:55.6]} 9. Bf4 {[%clk 0:03:12.4]} 9... g5 {[%clk
0:02:54.6]} 10. Bd2 {[%clk 0:03:13.1]} 10... h5 {[%clk 0:02:49.9]} 11. Bc3
{[%clk 0:02:35.9]} 11... Nxh2 {[%clk 0:02:20.8]} 12. Kxh2 {[%clk 0:02:33.1]}
12... g4 {[%clk 0:02:21.8]} 13. g3 {[%clk 0:02:29.9]} 13... h4 {[%clk
0:02:21.6]} 14. Kg2 {[%clk 0:02:31.4]} 14... d4 {[%clk 0:02:03.6]} 15. Be4
{[%clk 0:02:32.1]} 15... dxc3 {[%clk 0:02:04.2]} 16. Bxc6+ {[%clk 0:02:26.4]}
16... Bd7 {[%clk 0:02:04.9]} 17. Qxd7+ {[%clk 0:02:27]} 17... Qxd7 {[%clk
0:02:05.6]} 18. Bxd7+ {[%clk 0:02:28.9]} 18... Kxd7 {[%clk 0:02:07.3]} 19. Nxc3
{[%clk 0:02:29.6]} 19... Ke6 {[%clk 0:01:59]} 20. gxh4 {[%clk 0:02:21.4]} 20...
Rxh4 {[%clk 0:01:59.3]} 21. Ne4 {[%clk 0:02:22.7]} 21... Bd4 {[%clk 0:01:56]}
22. Ng5+ {[%clk 0:02:14.9]} 22... Kf5 {[%clk 0:01:52.5]} 23. Nxf7 {[%clk
0:02:12.4]} 23... Rf8 {[%clk 0:01:53.1]} 24. c3 {[%clk 0:02:11.7]} 24... Bb6
{[%clk 0:01:51.9]} 25. e6 {[%clk 0:02:05.1]} 25... Kxe6 {[%clk 0:01:52.9]} 26.
Kg3 {[%clk 0:02:03.1]} 26... Rh5 {[%clk 0:00:39.5]} 27. Kxg4 {[%clk 0:02:02.6]}
27... Rb5 {[%clk 0:00:35.9]} 28. Ng5+ {[%clk 0:01:58.8]} 28... Kd6 {[%clk
0:00:30.8]} 29. b3 {[%clk 0:01:53.1]} 29... Rbf5 {[%clk 0:00:23.7]} 30. f4
{[%clk 0:01:43.5]} 30... Be3 {[%clk 0:00:25.1]} 31. Rad1+ {[%clk 0:01:44.2]}
31... Kc6 {[%clk 0:00:26.4]} 32. Ne6 {[%clk 0:01:38.9]} 32... R8f6 {[%clk
0:00:27.8]} 33. Rd3 {[%clk 0:01:32.5]} 33... Bb6 {[%clk 0:00:26.5]} 34. c4
{[%clk 0:01:29.7]} 34... Ra5 {[%clk 0:00:25.2]} 35. f5 {[%clk 0:01:26.1]} 35...
Rxa2 {[%clk 0:00:24.4]} 36. Kg5 {[%clk 0:01:21.6]} 36... Rf7 {[%clk 0:00:15.2]}
37. Nd8+ {[%clk 0:01:22.3]} 1-0

[Event "*** Titled Tuesday Blitz"]
[Site "Chess.com"]
[Date "2019.04.02"]
[Round "6"]
[White "ilm2034"]
[Black "MasterKroket"]
[Result "1-0"]
[WhiteElo "2428"]
[BlackElo "2373"]
[TimeControl "180+2"]
[EndTime "15:18:46 PDT"]
[Termination "ilm2034 won by checkmate"]

1. d4 {[%clk 0:03:01.9]} 1... Nf6 {[%clk 0:01:43.1]} 2. c4 {[%clk 0:02:54.3]}
2... e6 {[%clk 0:01:44.3]} 3. f3 {[%clk 0:02:53.6]} 3... d5 {[%clk 0:01:43.7]}
4. Nc3 {[%clk 0:02:53]} 4... Be7 {[%clk 0:01:44.1]} 5. e4 {[%clk 0:02:52.5]}
5... O-O {[%clk 0:01:40.1]} 6. e5 {[%clk 0:02:52.9]} 6... Ne8 {[%clk 0:01:41.1]}
7. cxd5 {[%clk 0:02:47.6]} 7... exd5 {[%clk 0:01:41.8]} 8. Bd3 {[%clk
0:02:49.2]} 8... g6 {[%clk 0:01:35.6]} 9. Be3 {[%clk 0:02:48]} 9... Ng7 {[%clk
0:01:36.1]} 10. Qe2 {[%clk 0:02:41.9]} 10... Bf5 {[%clk 0:01:36.4]} 11. O-O-O
{[%clk 0:02:41.7]} 11... c6 {[%clk 0:01:23.5]} 12. h4 {[%clk 0:02:39.6]} 12...
Nd7 {[%clk 0:01:16.9]} 13. h5 {[%clk 0:02:38.2]} 13... Bxd3 {[%clk 0:01:16.1]}
14. Qxd3 {[%clk 0:02:38.7]} 14... Re8 {[%clk 0:01:10.8]} 15. hxg6 {[%clk
0:02:38]} 15... fxg6 {[%clk 0:01:11.5]} 16. Nh3 {[%clk 0:02:38.2]} 16... Nf8
{[%clk 0:01:11.5]} 17. g4 {[%clk 0:02:38.1]} 17... Rc8 {[%clk 0:01:08.7]} 18. f4
{[%clk 0:02:31.6]} 18... Qd7 {[%clk 0:01:05.1]} 19. Nf2 {[%clk 0:02:25.7]} 19...
Red8 {[%clk 0:01:02]} 20. Kb1 {[%clk 0:02:26.4]} 20... c5 {[%clk 0:00:52.7]} 21.
f5 {[%clk 0:02:26.9]} 21... gxf5 {[%clk 0:00:51.8]} 22. Rdg1 {[%clk 0:02:28.4]}
22... f4 {[%clk 0:00:43.7]} 23. Bxf4 {[%clk 0:02:27.6]} 23... cxd4 {[%clk
0:00:44.1]} 24. Ne2 {[%clk 0:02:27.4]} 24... Qc6 {[%clk 0:00:34.4]} 25. Nxd4
{[%clk 0:02:25.2]} 25... Qc4 {[%clk 0:00:32]} 26. Qd2 {[%clk 0:02:25.9]} 26...
Bc5 {[%clk 0:00:30.4]} 27. Be3 {[%clk 0:02:24.6]} 27... Bxd4 {[%clk 0:00:30.3]}
28. Bxd4 {[%clk 0:02:24]} 28... Nge6 {[%clk 0:00:27.5]} 29. Bc3 {[%clk
0:02:20.9]} 29... d4 {[%clk 0:00:27.5]} 30. Bb4 {[%clk 0:02:18.2]} 30... d3
{[%clk 0:00:24.9]} 31. Rc1 {[%clk 0:02:14.8]} 31... Qd5 {[%clk 0:00:14.8]} 32.
Bxf8 {[%clk 0:02:15.1]} 32... Rxc1+ {[%clk 0:00:14.9]} 33. Rxc1 {[%clk
0:02:15.3]} 33... Rxf8 {[%clk 0:00:11.7]} 34. Nxd3 {[%clk 0:02:14.2]} 34... Rd8
{[%clk 0:00:12.8]} 35. Rd1 {[%clk 0:02:14.9]} 35... Qe4 {[%clk 0:00:14.4]} 36.
Qc2 {[%clk 0:02:13.3]} 36... Qxg4 {[%clk 0:00:13.1]} 37. Qb3 {[%clk 0:02:05.4]}
37... Kh8 {[%clk 0:00:10.8]} 38. Rc1 {[%clk 0:02:02.8]} 38... Qe4 {[%clk
0:00:11]} 39. Rd1 {[%clk 0:02:02.9]} 39... Nc5 {[%clk 0:00:10.1]} 40. Qf7 {[%clk
0:01:59.3]} 40... Rxd3 {[%clk 0:00:03.3]} 41. Qf8# {[%clk 0:02:00.1]} 1-0

[Event "*** Titled Tuesday Blitz"]
[Site "Chess.com"]
[Date "2019.04.02"]
[Round "6"]
[White "BlueWizzard"]
[Black "Manukyan_Artak"]
[Result "1-0"]
[WhiteElo "2699"]
[BlackElo "2446"]
[TimeControl "180+2"]
[EndTime "15:18:48 PDT"]
[Termination "BlueWizzard won by resignation"]

1. e4 {[%clk 0:03:01.9]} 1... c6 {[%clk 0:03:00.6]} 2. d3 {[%clk 0:03:00.8]}
2... d5 {[%clk 0:03:02.5]} 3. Nf3 {[%clk 0:03:02.2]} 3... dxe4 {[%clk
0:03:02.8]} 4. dxe4 {[%clk 0:03:03.1]} 4... Qxd1+ {[%clk 0:03:04.7]} 5. Kxd1
{[%clk 0:03:04.5]} 5... Bg4 {[%clk 0:03:05.4]} 6. Nd2 {[%clk 0:03:02.9]} 6... f6
{[%clk 0:03:04]} 7. h3 {[%clk 0:03:03.5]} 7... Bh5 {[%clk 0:03:01.4]} 8. e5
{[%clk 0:03:02.8]} 8... Nd7 {[%clk 0:02:56.2]} 9. Be2 {[%clk 0:02:43.6]} 9...
Nxe5 {[%clk 0:02:43]} 10. Nxe5 {[%clk 0:02:44]} 10... Bxe2+ {[%clk 0:02:44.9]}
11. Kxe2 {[%clk 0:02:45.5]} 11... fxe5 {[%clk 0:02:46.7]} 12. Nf3 {[%clk
0:02:45.7]} 12... e4 {[%clk 0:02:44.6]} 13. Ng5 {[%clk 0:02:43.7]} 13... Nf6
{[%clk 0:02:42.5]} 14. Ne6 {[%clk 0:02:40.5]} 14... Kf7 {[%clk 0:02:41.2]} 15.
Nc5 {[%clk 0:02:40.9]} 15... b6 {[%clk 0:02:38.7]} 16. Nb3 {[%clk 0:02:39.2]}
16... e5 {[%clk 0:02:37.8]} 17. a4 {[%clk 0:02:38.6]} 17... a5 {[%clk
0:02:30.6]} 18. Be3 {[%clk 0:02:38.3]} 18... c5 {[%clk 0:02:31.1]} 19. Nd2
{[%clk 0:02:37.8]} 19... Bd6 {[%clk 0:02:30]} 20. g4 {[%clk 0:02:35.7]} 20... h6
{[%clk 0:02:27.9]} 21. Rag1 {[%clk 0:02:34.6]} 21... Bc7 {[%clk 0:02:17.3]} 22.
h4 {[%clk 0:02:33.6]} 22... Rh7 {[%clk 0:02:03.4]} 23. g5 {[%clk 0:02:32.5]}
23... hxg5 {[%clk 0:02:04.4]} 24. hxg5 {[%clk 0:02:34]} 24... Rxh1 {[%clk
0:02:01.5]} 25. Rxh1 {[%clk 0:02:35.6]} 25... Nd5 {[%clk 0:01:59.6]} 26. Nxe4
{[%clk 0:02:35.4]} 26... Rd8 {[%clk 0:01:51.1]} 27. c3 {[%clk 0:02:19.4]} 27...
Rd7 {[%clk 0:01:40]} 28. Kd3 {[%clk 0:02:13.1]} 28... Nf4+ {[%clk 0:01:16]} 29.
Kc4 {[%clk 0:02:12.3]} 29... Ne6 {[%clk 0:01:17.9]} 30. Rh8 {[%clk 0:01:55]}
30... Kg6 {[%clk 0:01:12]} 31. Re8 {[%clk 0:01:51.1]} 31... Kf7 {[%clk
0:01:11.8]} 32. Ra8 {[%clk 0:01:47.4]} 32... Kg6 {[%clk 0:01:12.4]} 33. Kb5
{[%clk 0:01:46.1]} 33... Kf5 {[%clk 0:01:11]} 34. Kc6 {[%clk 0:01:30.8]} 34...
Rf7 {[%clk 0:01:07.1]} 35. Re8 {[%clk 0:01:12.8]} 35... Nd8+ {[%clk 0:00:59.5]}
36. Rxd8 {[%clk 0:01:13.4]} 36... Bxd8 {[%clk 0:00:51.4]} 37. Nd6+ {[%clk
0:01:13.8]} 37... Ke6 {[%clk 0:00:51]} 38. Nxf7 {[%clk 0:01:15.1]} 38... Kxf7
{[%clk 0:00:52.9]} 39. Kd7 {[%clk 0:01:13.2]} 39... Be7 {[%clk 0:00:51]} 40. Kc7
{[%clk 0:01:07.6]} 40... Ke6 {[%clk 0:00:49.3]} 41. Kxb6 {[%clk 0:01:08]} 41...
Kd5 {[%clk 0:00:45.8]} 42. Kxa5 {[%clk 0:01:07.1]} 1-0